bitfinex-derivatives/quotes_BTCF0:USTF0_20220103
["timestamp","ask_amount","ask_price","bid_price","bid_amount"]
[1641179097424,0.27540738,47045.0,47044.0,0.0226]
[1641179097825,0.185,47045.0,47044.0,0.60833134]
[1641179098725,1.44651801,47049.0,47044.0,0.60833134]
[1641179098926,0.09040738,47045.0,47044.0,0.0226]
[1641179099427,0.27540738,47045.0,47044.0,0.0226]
[1641179099827,0.185,47045.0,47044.0,0.0226]
[1641179100028,0.185,47045.0,47044.0,0.60833134]
[1641179100628,1.44651801,47049.0,47044.0,0.60833134]
[1641179100830,0.09040738,47045.0,47044.0,0.58573134]
[1641179101230,0.09040738,47045.0,47044.0,0.72886828]
[1641179101429,0.27740738,47045.0,47044.0,0.72886828]
[1641179101630,0.187,47045.0,47044.0,0.72886828]
[1641179102030,0.187,47045.0,47044.0,0.60833134]
[1641179102433,0.27740738,47045.0,47044.0,0.60833134]
[1641179103333,0.09040738,47045.0,47044.0,0.60833134]
[1641179103533,0.27440738,47045.0,47044.0,0.60833134]
[1641179104335,0.27440738,47045.0,47044.0,0.0226]
[1641179104837,0.09040738,47045.0,47044.0,0.0226]
[1641179105035,0.09040738,47045.0,47044.0,0.14314226]
[1641179105436,0.27440738,47045.0,47044.0,0.14314226]
[1641179106736,0.09040738,47045.0,47044.0,0.14314226]
[1641179107539,0.27540738,47045.0,47044.0,0.14314226]
[1641179108842,0.09040738,47045.0,47044.0,0.14314226]
[1641179109442,0.27440738,47045.0,47044.0,0.14314226]
[1641179109945,0.184,47045.0,47044.0,0.14314226]
[1641179110944,0.09040738,47045.0,47044.0,0.14314226]
[1641179111544,0.27540738,47045.0,47044.0,0.14314226]
[1641179112647,0.185,47045.0,47044.0,0.14314226]
[1641179112846,1.44651801,47049.0,47044.0,0.7288736]
[1641179113147,1.44651801,47049.0,47044.0,0.7062736]
[1641179113450,1.63151801,47049.0,47048.0,0.0226]
[1641179114550,1.72192539,47049.0,47048.0,0.0226]
[1641179114759,1.53692539,47049.0,47048.0,0.0226]
[1641179115563,1.72092539,47049.0,47048.0,0.0226]
[1641179115765,1.72092539,47049.0,47047.0,0.0226]
[1641179115962,1.78670539,47049.0,47047.0,0.0226]
[1641179116162,0.34018738,47049.0,47047.0,0.0226]
[1641179117363,1.53691255,47048.0,47047.0,0.0226]
[1641179118266,0.09040738,47048.0,47047.0,0.0226]
[1641179119569,0.27440738,47048.0,47047.0,0.0226]
[1641179120771,0.09040738,47048.0,47047.0,0.0226]
[1641179121470,0.27440738,47048.0,47047.0,0.0226]
[1641179121978,2.02347919,47064.0,47047.0,0.22385454]
[1641179121979,0.42498886,47061.0,47047.0,0.22385454]
[1641179122172,1.93844368,47064.0,47060.0,0.0226]
[1641179122371,1.93844368,47064.0,47061.0,0.0226]
[1641179122771,0.25157978,47064.0,47061.0,0.0226]
[1641179122977,0.02125454,47065.0,47061.0,0.0226]
[1641179123272,0.02125454,47065.0,47064.0,0.0226]
[1641179123472,0.179,47065.0,47064.0,0.0226]
[1641179124271,0.179,47065.0,47064.0,0.16293567]
[1641179124874,1.6868639,47076.0,47064.0,0.16293567]
[1641179125072,1.6868639,47076.0,47064.0,0.14033567]
[1641179125273,1.6868639,47076.0,47070.0,0.0226]
[1641179125473,0.20625092,47073.0,47070.0,0.09279]
[1641179126776,0.02125092,47073.0,47070.0,0.09279]
[1641179127577,0.20225092,47073.0,47070.0,0.26279]
[1641179128776,0.02125092,47073.0,47070.0,0.09279]
[1641179129579,0.20525092,47073.0,47070.0,0.09279]
[1641179130177,0.20525092,47073.0,47070.0,0.0226]
[1641179130780,0.02125092,47073.0,47070.0,0.0226]
[1641179130981,0.02125092,47073.0,47064.0,0.32033567]
[1641179131180,0.02125092,47073.0,47070.0,0.0226]
[1641179131580,0.20425092,47073.0,47070.0,0.0226]
[1641179132980,0.02125092,47073.0,47070.0,0.0226]
[1641179133485,0.20725092,47073.0,47070.0,0.0226]
[1641179134782,0.02125092,47073.0,47070.0,0.0226]
[1641179135485,0.20825092,47073.0,47070.0,0.0226]
[1641179136783,0.17865271,47071.0,47067.0,0.0226]
[1641179136982,0.009794,47070.0,47064.0,0.14033567]
[1641179137183,0.02125415,47066.0,47064.0,0.14033567]
[1641179137483,0.1574,47065.0,47064.0,0.14033567]
[1641179137884,0.02125415,47066.0,47064.0,0.14033567]
[1641179139087,0.09039726,47065.0,47064.0,0.14033567]
[1641179139487,0.09039726,47065.0,47064.0,0.29533567]
[1641179140889,0.09039726,47065.0,47064.0,0.14033567]
[1641179141493,0.27539726,47065.0,47064.0,0.28433567]
[1641179142793,0.09039726,47065.0,47064.0,0.14033567]
[1641179143496,0.27639726,47065.0,47064.0,0.27233567]
[1641179144896,0.09039726,47065.0,47064.0,0.14033567]
[1641179145498,0.27039726,47065.0,47064.0,0.31833567]
[1641179146097,0.18,47065.0,47064.0,0.31833567]
[1641179146797,0.09039726,47069.0,47064.0,0.14033567]
[1641179146996,0.09039726,47069.0,47066.0,0.0226]
[1641179147198,0.009794,47070.0,47066.0,0.0226]
[1641179147598,0.188,47069.0,47066.0,0.0226]
[1641179147999,0.36665278,47069.0,47066.0,0.0226]
[1641179148199,0.20925278,47069.0,47066.0,0.0226]
[1641179148799,0.02125278,47069.0,47066.0,0.0226]
[1641179149600,0.21225278,47069.0,47066.0,0.0226]
[1641179150801,0.02125278,47069.0,47066.0,0.0226]
[1641179151706,0.21225278,47069.0,47066.0,0.0226]
[1641179153003,0.02125278,47069.0,47066.0,0.0226]
[1641179153604,0.21225278,47069.0,47066.0,0.0226]
[1641179154208,0.191,47069.0,47066.0,0.0226]
[1641179154806,0.02125127,47072.0,47066.0,0.0226]
[1641179155007,0.02125127,47072.0,47071.0,0.0226]
[1641179155507,0.21625127,47072.0,47071.0,0.0226]
[1641179156933,0.02125127,47072.0,47071.0,0.0226]
[1641179157527,0.21025127,47072.0,47071.0,0.0976]
[1641179158931,0.02125127,47072.0,47071.0,0.0226]
[1641179159531,0.20825127,47072.0,47071.0,0.0226]
[1641179160529,1.32325127,47072.0,47071.0,0.0226]
[1641179160733,1.39311127,47072.0,47071.0,0.0226]
[1641179160932,1.20611127,47072.0,47071.0,0.0226]
[1641179161637,0.27311127,47072.0,47071.0,0.0226]
[1641179161830,0.20325127,47072.0,47071.0,0.0226]
[1641179163032,0.15912361,47072.0,47069.0,0.01252394]
[1641179163432,0.11164755,47072.0,47069.0,0.01252394]
[1641179163631,0.29764755,47072.0,47069.0,0.01252394]
[1641179164833,0.09039628,47071.0,47069.0,0.01252394]
[1641179165535,0.09039628,47071.0,47069.0,0.04752394]
[1641179165735,0.27239628,47071.0,47069.0,0.04752394]
[1641179166941,0.09039628,47071.0,47069.0,0.01252394]
[1641179167143,0.09039628,47070.0,47069.0,0.01252394]
[1641179167637,0.27239628,47070.0,47069.0,0.14952394]
[1641179168342,0.182,47070.0,47069.0,0.14952394]
[1641179169145,0.09039628,47071.0,47069.0,0.01252394]
[1641179169740,0.09039628,47070.0,47069.0,0.04752394]
[1641179171040,0.09039628,47070.0,47069.0,0.01252394]
[1641179171640,0.27239628,47070.0,47069.0,0.14952394]
[1641179173042,0.09039628,47070.0,47069.0,0.01252394]
[1641179173650,0.27239628,47070.0,47069.0,0.14952394]
[1641179174346,0.182,47070.0,47069.0,0.14952394]
[1641179175549,0.27239628,47070.0,47069.0,0.14952394]
[1641179175748,0.33127628,47070.0,47069.0,0.12652394]
[1641179175947,1.44627628,47070.0,47069.0,0.114]
[1641179176152,1.39993816,47067.0,47064.0,0.14033567]
[1641179176550,1.115,47067.0,47064.0,0.14033567]
[1641179177351,1.30372977,47067.0,47064.0,0.14033567]
[1641179177753,1.49472977,47067.0,47064.0,0.14033567]
[1641179177951,0.09039628,47066.0,47064.0,0.14033567]
[1641179178151,0.09039628,47066.0,47061.0,0.01252394]
[1641179178953,0.14033567,47064.0,47061.0,0.01252394]
[1641179179751,0.32233567,47064.0,47061.0,0.01252394]
[1641179180653,0.09039628,47063.0,47061.0,0.01252394]
[1641179181656,0.27239628,47063.0,47061.0,0.01252394]
[1641179182157,0.27239628,47063.0,47056.0,0.35119633]
[1641179182556,0.27239628,47063.0,47055.0,0.35119633]
[1641179182960,0.09039628,47063.0,47055.0,0.35119633]
[1641179183157,0.09039628,47063.0,47061.0,0.01252394]
[1641179183358,0.09039628,47062.0,47061.0,0.01252394]
[1641179184757,0.27439628,47063.0,47061.0,0.01252394]
[1641179184958,0.09039628,47063.0,47061.0,0.01252394]
[1641179185660,0.09039628,47062.0,47061.0,0.01252394]
[1641179186260,0.09039628,47062.0,47055.0,0.35119633]
[1641179186459,0.09039628,47062.0,47056.0,0.01252394]
[1641179186658,0.09039628,47062.0,47055.0,0.35119633]
[1641179187458,0.09039628,47062.0,47057.0,0.01252394]
[1641179187658,0.27839628,47062.0,47057.0,0.01252394]
[1641179188659,1.39339628,47062.0,47057.0,0.01252394]
[1641179189160,0.09039628,47061.0,47057.0,0.01252394]
[1641179189459,0.09039628,47061.0,47055.0,0.01252394]
[1641179189677,0.27639628,47061.0,47055.0,0.01252394]
[1641179189859,1.39139628,47061.0,47055.0,0.01252394]
[1641179190259,0.27639628,47061.0,47055.0,0.01252394]
[1641179190459,0.27639628,47061.0,47059.0,0.01252394]
[1641179190862,0.09039628,47060.0,47059.0,0.01252394]
[1641179191662,0.27739628,47060.0,47059.0,0.01252394]
[1641179192062,0.27739628,47060.0,47053.0,0.35119633]
[1641179192262,0.29865311,47060.0,47057.0,0.01252394]
[1641179193061,0.11165311,47060.0,47057.0,0.01252394]
[1641179193662,0.29765311,47060.0,47057.0,0.01252394]
[1641179193862,0.09039628,47059.0,47057.0,0.01252394]
[1641179195064,0.02125683,47060.0,47057.0,0.01252394]
[1641179195663,0.20725683,47060.0,47057.0,0.01252394]
[1641179195863,0.09039628,47059.0,47057.0,0.01252394]
[1641179196664,0.20725683,47060.0,47057.0,0.01252394]
[1641179197064,0.02125683,47060.0,47057.0,0.01252394]
[1641179197463,0.28067134,47064.0,47057.0,0.01252394]
[1641179197763,0.09039628,47059.0,47053.0,0.53119633]
[1641179197964,0.09039628,47059.0,47058.0,0.19252394]
[1641179198165,0.09039628,47059.0,47058.0,0.25269394]
[1641179198765,1.63323411,47060.0,47058.0,0.25269394]
[1641179199166,1.44623411,47060.0,47059.0,0.14033567]
[1641179199767,1.62523411,47060.0,47059.0,0.14033567]
[1641179199966,0.179,47060.0,47059.0,0.14033567]
[1641179200167,0.179,47060.0,47059.0,0.32033567]
[1641179200669,0.179,47060.0,47059.0,0.14033567]
[1641179201072,1.44623411,47061.0,47059.0,0.14033567]
[1641179201569,1.44623411,47062.0,47059.0,0.14033567]
[1641179201769,0.18,47061.0,47059.0,0.14033567]
[1641179202468,1.62623411,47061.0,47059.0,0.32033567]
[1641179202668,1.62623411,47061.0,47059.0,0.14033567]
[1641179203069,1.44623411,47061.0,47059.0,0.14033567]
[1641179203269,1.44623411,47062.0,47059.0,0.14033567]
[1641179203473,1.44623411,47062.0,47061.0,0.01252394]
[1641179203675,1.62723411,47062.0,47061.0,0.01252394]
[1641179205184,1.44623411,47062.0,47061.0,0.01252394]
[1641179205685,1.62423411,47062.0,47061.0,0.01252394]
[1641179206685,0.178,47062.0,47061.0,0.01252394]
[1641179207086,1.28247606,47067.0,47061.0,0.01252394]
[1641179207682,1.46347606,47067.0,47061.0,0.01252394]
[1641179208183,0.02125443,47065.0,47061.0,0.01252394]
[1641179209685,0.20125443,47065.0,47061.0,0.01252394]
[1641179211087,0.02125443,47065.0,47061.0,0.01252394]
[1641179211988,0.20425443,47065.0,47061.0,0.01252394]
[1641179213086,0.02125443,47065.0,47061.0,0.01252394]
[1641179213686,0.09368443,47065.0,47061.0,0.01252394]
[1641179213886,0.27568443,47065.0,47061.0,0.01252394]
[1641179214990,0.09039267,47064.0,47061.0,0.01252394]
[1641179215891,0.27139267,47064.0,47061.0,0.01252394]
[1641179217092,0.09039267,47063.0,47061.0,0.01252394]
[1641179217890,0.26939267,47063.0,47061.0,0.01252394]
[1641179218191,0.179,47063.0,47061.0,0.01252394]
[1641179219191,0.09039267,47064.0,47061.0,0.01252394]
[1641179219694,0.09039267,47062.0,47061.0,0.01252394]
[1641179220293,0.179,47064.0,47061.0,0.01252394]
[1641179220294,0.26939267,47064.0,47061.0,0.01252394]
[1641179221095,0.09039267,47064.0,47061.0,0.01252394]
[1641179221593,0.09039267,47063.0,47061.0,0.01252394]
[1641179221996,0.09039267,47063.0,47059.0,0.14033567]
[1641179223294,0.09039267,47063.0,47060.0,0.01252394]
[1641179223795,0.27339267,47063.0,47060.0,0.01252394]
[1641179225097,0.09039267,47062.0,47060.0,0.01252394]
[1641179225799,0.27439267,47062.0,47060.0,0.01252394]
[1641179226796,0.09039267,47061.0,47060.0,0.01252394]
[1641179227797,0.27439267,47061.0,47060.0,0.01252394]
[1641179229100,0.09039267,47061.0,47060.0,0.01252394]
[1641179229799,0.27439267,47061.0,47060.0,0.01252394]
[1641179231202,0.09039267,47061.0,47060.0,0.01252394]
[1641179231802,0.27339267,47061.0,47060.0,0.01252394]
[1641179232203,0.183,47061.0,47060.0,0.01252394]
[1641179233006,0.27339267,47061.0,47060.0,0.01252394]
[1641179233203,0.09039267,47061.0,47060.0,0.01252394]
[1641179233903,0.27439267,47061.0,47060.0,0.01252394]
[1641179235203,0.09039267,47061.0,47060.0,0.01252394]
[1641179235504,0.09039267,47063.0,47060.0,0.01252394]
[1641179235904,0.182,47061.0,47060.0,0.01252394]
[1641179237106,0.51535683,47063.0,47060.0,0.01252394]
[1641179237705,0.09039267,47062.0,47060.0,0.01252394]
[1641179238706,0.09039267,47062.0,47058.0,0.14033567]
[1641179239910,0.27239267,47062.0,47058.0,0.14033567]
[1641179241313,0.09039267,47061.0,47058.0,0.14033567]
[1641179241511,0.09039267,47061.0,47060.0,0.01252394]
[1641179241913,0.27239267,47061.0,47060.0,0.01252394]
[1641179242112,0.27239267,47061.0,47059.0,0.01252394]
[1641179242311,0.27239267,47061.0,47058.0,0.14033567]
[1641179242512,0.29364903,47061.0,47058.0,0.14033567]
[1641179242712,0.29364903,47061.0,47058.0,0.15285961]
[1641179243111,0.11164903,47061.0,47058.0,0.15285961]
[1641179243312,0.09039267,47060.0,47058.0,0.15285961]
[1641179243715,0.09039267,47060.0,47058.0,0.01252394]
[1641179243915,0.27139267,47060.0,47058.0,0.01252394]
[1641179245114,0.09039267,47060.0,47058.0,0.01252394]
[1641179245515,0.09039267,47059.0,47058.0,0.01252394]
[1641179246314,0.27139267,47060.0,47058.0,0.01252394]
[1641179246516,0.27139267,47060.0,47053.0,0.14033567]
[1641179246715,0.27139267,47060.0,47055.0,0.01252394]
[1641179247116,0.09039267,47059.0,47055.0,0.01252394]
[1641179248015,0.27039267,47059.0,47055.0,0.01252394]
[1641179248719,1.44653808,47056.0,47055.0,0.01252394]
[1641179249918,1.62253808,47056.0,47055.0,0.01252394]
[1641179251117,1.53693075,47056.0,47055.0,0.01252394]
[1641179251919,1.71593075,47056.0,47055.0,0.01252394]
[1641179252520,1.62553808,47056.0,47055.0,0.01252394]
[1641179253222,1.53693075,47056.0,47055.0,0.01252394]
[1641179253835,1.44653808,47056.0,47055.0,0.01252394]
[1641179254032,1.62553808,47056.0,47055.0,0.01252394]
[1641179255033,1.71593075,47056.0,47055.0,0.01252394]
[1641179255335,1.53693075,47056.0,47055.0,0.01252394]
[1641179256034,1.71693075,47056.0,47055.0,0.01252394]
[1641179257037,0.27039267,47056.0,47055.0,0.01252394]
[1641179257237,0.09039267,47056.0,47055.0,0.01252394]
[1641179257937,0.27039267,47056.0,47055.0,0.01252394]
[1641179258438,1.71692285,47056.0,47055.0,0.01252394]
[1641179259240,1.53692285,47056.0,47055.0,0.01252394]
[1641179259441,0.09039267,47056.0,47055.0,0.01252394]
[1641179259942,0.27039267,47056.0,47055.0,0.01252394]
[1641179260141,1.62653018,47056.0,47055.0,0.01252394]
[1641179260842,0.27039267,47056.0,47055.0,0.01252394]
[1641179261347,0.09039267,47056.0,47055.0,0.01252394]
[1641179261944,0.27039267,47056.0,47055.0,0.01252394]
[1641179263346,0.09039267,47056.0,47055.0,0.01252394]
[1641179263947,0.27039267,47056.0,47055.0,0.01252394]
[1641179265347,1.53692285,47056.0,47055.0,0.01252394]
[1641179266045,1.71792285,47056.0,47055.0,0.01252394]
[1641179266649,0.27139267,47056.0,47055.0,0.01252394]
[1641179266847,0.181,47056.0,47055.0,0.01252394]
[1641179267447,0.09039267,47057.0,47055.0,0.01252394]
[1641179267749,0.09039267,47056.0,47055.0,0.01252394]
[1641179268955,0.27139267,47057.0,47055.0,0.01252394]
[1641179269358,0.27139267,47057.0,47053.0,0.14033567]
[1641179269555,0.09039267,47057.0,47053.0,0.14033567]
[1641179269755,0.1099745,47056.0,47053.0,0.14033567]
[1641179269956,0.20036717,47056.0,47053.0,0.14033567]
[1641179270361,0.001,47054.0,47053.0,0.14033567]
[1641179271059,0.001,47054.0,47053.0,0.15285961]
[1641179271958,0.09139267,47054.0,47053.0,0.15285961]
[1641179272158,0.28139267,47054.0,47053.0,0.15285961]
[1641179273358,0.09139267,47054.0,47053.0,0.15285961]
[1641179274059,0.28139267,47054.0,47053.0,0.15285961]
[1641179275060,0.28139267,47054.0,47053.0,0.14033567]
[1641179275560,0.09139267,47054.0,47053.0,0.14033567]
[1641179276162,0.28139267,47054.0,47053.0,0.14033567]
[1641179277666,0.09139267,47054.0,47053.0,0.14033567]
[1641179278064,0.28139267,47054.0,47053.0,0.14033567]
[1641179279469,0.09139267,47054.0,47053.0,0.14033567]
[1641179280067,0.28139267,47054.0,47053.0,0.14033567]
[1641179281568,0.09139267,47054.0,47053.0,0.14033567]
[1641179282170,0.28139267,47054.0,47053.0,0.14033567]
[1641179283673,0.09139267,47054.0,47053.0,0.14033567]
[1641179284073,0.28139267,47054.0,47053.0,0.14033567]
[1641179284775,0.30265278,47054.0,47053.0,0.14033567]
[1641179285576,0.11265278,47054.0,47053.0,0.14033567]
[1641179286075,0.30265278,47054.0,47053.0,0.14033567]
[1641179287378,0.11265278,47054.0,47053.0,0.14033567]
[1641179288077,0.30265278,47054.0,47053.0,0.14033567]
[1641179288280,0.30265278,47054.0,47050.0,0.01252394]
[1641179288480,0.30165278,47054.0,47050.0,0.01252394]
[1641179289181,0.09039267,47053.0,47050.0,0.01252394]
[1641179289881,0.09039267,47053.0,47049.0,0.14033567]
[1641179290081,0.27339267,47053.0,47049.0,0.14033567]
[1641179291081,0.09039267,47052.0,47049.0,0.14033567]
[1641179292185,0.27339267,47052.0,47049.0,0.14033567]
[1641179292785,0.09039267,47051.0,47049.0,0.14033567]
[1641179294187,0.27239267,47051.0,47049.0,0.14033567]
[1641179295190,0.182,47051.0,47049.0,0.14033567]
[1641179295488,0.0682,47052.0,47049.0,0.14033567]
[1641179295889,0.09039267,47050.0,47049.0,0.14033567]
[1641179296490,0.09039267,47051.0,47049.0,0.14033567]
[1641179296688,0.09039267,47051.0,47050.0,0.01252394]
[1641179298290,0.182,47051.0,47050.0,0.01252394]
[1641179298893,0.27239267,47051.0,47050.0,0.01252394]
[1641179299592,0.09039267,47051.0,47050.0,0.01252394]
[1641179300192,0.27239267,47051.0,47050.0,0.01252394]
[1641179300594,0.182,47051.0,47050.0,0.01252394]
[1641179301094,0.27239267,47051.0,47050.0,0.01252394]
[1641179301495,0.09039267,47051.0,47050.0,0.01252394]
[1641179302214,0.27239267,47051.0,47050.0,0.01252394]
[1641179302597,0.182,47051.0,47050.0,0.01252394]
[1641179303496,0.09039267,47052.0,47050.0,0.01252394]
[1641179303900,0.09039267,47051.0,47050.0,0.01252394]
[1641179304699,0.27339267,47052.0,47050.0,0.01252394]
[1641179305499,0.09039267,47051.0,47050.0,0.01252394]
[1641179306002,0.09039267,47052.0,47050.0,0.01252394]
[1641179306199,0.182,47051.0,47050.0,0.01252394]
[1641179307602,0.09039267,47052.0,47050.0,0.01252394]
[1641179307901,0.09039267,47051.0,47050.0,0.01252394]
[1641179308902,0.27339267,47052.0,47050.0,0.01252394]
[1641179309603,0.09039267,47051.0,47050.0,0.01252394]
[1641179310401,0.27239267,47051.0,47050.0,0.01252394]
[1641179310802,0.182,47051.0,47050.0,0.01252394]
[1641179311504,0.27239267,47051.0,47050.0,0.01252394]
[1641179311705,0.09039267,47051.0,47050.0,0.01252394]
[1641179312304,0.27239267,47051.0,47050.0,0.01252394]
[1641179313005,0.182,47051.0,47050.0,0.01252394]
[1641179313504,0.09039267,47051.0,47050.0,0.01252394]
[1641179314205,0.27239267,47051.0,47050.0,0.01252394]
[1641179314805,0.182,47051.0,47050.0,0.01252394]
[1641179315506,0.09039267,47052.0,47050.0,0.01252394]
[1641179315808,0.09039267,47051.0,47050.0,0.01252394]
[1641179316707,0.27339267,47052.0,47050.0,0.01252394]
[1641179317218,0.09039267,47051.0,47050.0,0.01252394]
[1641179318319,0.27339267,47051.0,47050.0,0.01252394]
[1641179318820,0.183,47051.0,47050.0,0.01252394]
[1641179319521,0.09039267,47052.0,47050.0,0.01252394]
[1641179319926,0.09039267,47051.0,47050.0,0.01252394]
[1641179320822,0.27339267,47052.0,47050.0,0.01252394]
[1641179321621,0.09039267,47051.0,47050.0,0.01252394]
[1641179322224,0.27339267,47051.0,47050.0,0.01252394]
[1641179323022,0.183,47051.0,47050.0,0.01252394]
[1641179323423,0.27339267,47051.0,47050.0,0.01252394]
[1641179323722,0.09039267,47051.0,47050.0,0.01252394]
[1641179324324,0.29465399,47051.0,47050.0,0.01252394]
[1641179325526,0.11165399,47051.0,47050.0,0.01252394]
[1641179326226,0.29765399,47051.0,47050.0,0.01252394]
[1641179327526,0.11165399,47051.0,47050.0,0.01252394]
[1641179328228,0.29765399,47051.0,47050.0,0.01252394]
[1641179329530,0.11165399,47051.0,47050.0,0.01252394]
[1641179330231,0.29765399,47051.0,47050.0,0.01252394]
[1641179331634,0.11165399,47051.0,47050.0,0.01252394]
[1641179332335,0.29765399,47051.0,47050.0,0.01252394]
[1641179333536,0.11165399,47051.0,47050.0,0.01252394]
[1641179334337,0.29765399,47051.0,47050.0,0.01252394]
[1641179335538,0.11165399,47051.0,47050.0,0.01252394]
[1641179336238,0.29765399,47051.0,47050.0,0.01252394]
[1641179337640,0.11165399,47051.0,47050.0,0.01252394]
[1641179338342,0.29765399,47051.0,47050.0,0.01252394]
[1641179339546,0.11165399,47051.0,47050.0,0.01252394]
[1641179340349,0.29765399,47051.0,47050.0,0.01252394]
[1641179341552,0.11165399,47051.0,47050.0,0.01252394]
[1641179341751,0.18137399,47051.0,47050.0,0.01252394]
[1641179341952,0.18137399,47051.0,47044.0,0.35119633]
[1641179342152,0.18874127,47045.0,47044.0,0.35119633]
[1641179342353,0.18874127,47045.0,47044.0,0.33160833]
[1641179342552,0.18974127,47045.0,47041.0,0.81859339]
[1641179342754,0.16747606,47042.0,47039.0,1.1745618]
[1641179343153,0.02126924,47040.0,47039.0,1.1745618]
[1641179343353,0.10724924,47040.0,47039.0,1.1745618]
[1641179343753,0.32054924,47040.0,47039.0,1.0384618]
[1641179343953,0.32054924,47040.0,47039.0,0.9020618]
[1641179344157,0.32054924,47040.0,47033.0,0.15285961]
[1641179344353,0.001,47036.0,47033.0,0.15285961]
[1641179344552,0.16847606,47036.0,47033.0,0.14033567]
[1641179344754,3.26407851,47036.0,47033.0,0.15285961]
[1641179344954,0.001,47034.0,47033.0,0.15285961]
[1641179346357,0.186,47034.0,47033.0,0.15285961]
[1641179346761,0.2976634,47034.0,47033.0,0.15285961]
[1641179347359,0.2976634,47034.0,47025.0,2.06253567]
[1641179347558,0.16747606,47032.0,47028.0,0.01252394]
[1641179347760,0.001,47029.0,47028.0,0.01252394]
[1641179347963,0.08474,47029.0,47028.0,0.01252394]
[1641179348365,0.29001269,47029.0,47028.0,0.01252394]
[1641179348764,0.29001269,47029.0,47025.0,0.14033567]
[1641179348965,0.001,47026.0,47025.0,0.14033567]
[1641179350371,0.187,47026.0,47025.0,0.14033567]
[1641179351173,0.27739267,47026.0,47025.0,0.14033567]
[1641179351672,0.09139267,47026.0,47025.0,0.14033567]
[1641179352373,0.27639267,47026.0,47025.0,0.14033567]
[1641179353574,0.09139267,47026.0,47025.0,0.14033567]
[1641179354377,0.27739267,47026.0,47025.0,0.14033567]
[1641179354576,0.27639267,47026.0,47025.0,0.14033567]
[1641179355677,0.09039267,47026.0,47025.0,0.20168567]
[1641179356278,0.27439267,47026.0,47025.0,0.20168567]
[1641179356981,0.29566518,47026.0,47025.0,0.14033567]
[1641179357680,1.55907857,47026.0,47025.0,0.14033567]
[1641179358279,1.74107857,47026.0,47025.0,0.14033567]
[1641179358479,0.29366518,47026.0,47025.0,0.14033567]
[1641179359079,0.29366518,47026.0,47020.0,0.37521349]
[1641179359583,0.11166518,47026.0,47020.0,0.37521349]
[1641179359780,0.11166518,47026.0,47023.0,0.14033567]
[1641179360385,1.44750236,47024.0,47023.0,0.14033567]
[1641179362485,1.63350236,47024.0,47023.0,0.14033567]
[1641179362887,0.186,47024.0,47023.0,0.49554916]
[1641179363687,0.09039267,47025.0,47023.0,0.49554916]
[1641179363887,0.09039267,47024.0,47023.0,0.49554916]
[1641179364387,0.27339267,47024.0,47023.0,0.49554916]
[1641179365189,0.27339267,47024.0,47023.0,0.14033567]
[1641179365190,0.183,47024.0,47023.0,0.14033567]
[1641179365388,0.183,47024.0,47023.0,0.26095359]
[1641179365690,0.09039267,47025.0,47023.0,0.26095359]
[1641179365892,0.02126731,47037.0,47024.0,0.1615996]
[1641179366193,0.02126731,47037.0,47035.0,0.18]
[1641179366388,0.02126731,47037.0,47035.0,0.25563]
[1641179367392,0.02126731,47037.0,47035.0,0.07563]
[1641179367593,0.02126731,47037.0,47030.0,0.18]
[1641179367792,0.02126731,47037.0,47035.0,0.35405505]
[1641179367992,0.02126731,47037.0,47035.0,0.49439072]
[1641179368392,0.02126731,47037.0,47035.0,0.68339072]
[1641179368792,0.02126731,47037.0,47035.0,0.54305505]
[1641179369194,0.02126731,47037.0,47035.0,0.189]
[1641179369593,0.02126738,47036.0,47035.0,0.189]
[1641179369795,0.02126738,47036.0,47032.0,0.35405505]
[1641179370396,0.02126879,47033.0,47032.0,0.189]
[1641179371701,0.02126879,47033.0,47029.0,0.14033567]
[1641179372100,0.02126682,47038.0,47029.0,0.14033567]
[1641179372304,0.0212683,47034.0,47029.0,0.22066567]
[1641179372501,0.0212683,47034.0,47029.0,0.41366567]
[1641179373202,0.0212683,47034.0,47030.0,0.35405505]
[1641179374202,0.0212683,47034.0,47029.0,0.33333567]
[1641179374203,0.0212683,47034.0,47029.0,0.68739072]
[1641179374402,0.0212683,47034.0,47030.0,0.192]
[1641179375805,0.0212662,47039.0,47031.0,0.18]
[1641179376502,0.2042662,47039.0,47031.0,0.361]
[1641179376702,0.2042662,47039.0,47031.0,0.181]
[1641179376903,0.2042662,47039.0,47032.0,0.53405505]
[1641179377103,0.2042662,47039.0,47032.0,0.35405505]
[1641179377705,0.0212662,47039.0,47032.0,0.35405505]
[1641179377904,0.0212662,47039.0,47031.0,0.35405505]
[1641179378401,0.1992662,47039.0,47031.0,0.53505505]
[1641179379705,0.0212662,47039.0,47030.0,0.35405505]
[1641179380405,0.1982662,47039.0,47030.0,0.53605505]
[1641179381505,1.44727434,47033.0,47030.0,0.53605505]
[1641179381904,1.44727434,47033.0,47030.0,0.35405505]
[1641179382304,1.44727434,47032.0,47030.0,0.35405505]
[1641179382504,1.44727434,47032.0,47030.0,0.193]
[1641179383205,1.44727434,47033.0,47030.0,0.54705505]
[1641179384407,1.44727434,47033.0,47030.0,0.54605505]
[1641179385307,1.44727434,47033.0,47030.0,0.62256505]
[1641179385908,1.44727434,47033.0,47030.0,0.43056505]
[1641179386607,1.44727434,47034.0,47031.0,0.35405505]
[1641179388510,1.44727434,47034.0,47031.0,0.192]
[1641179389712,1.44727434,47034.0,47030.0,0.35405505]
[1641179390513,1.44727434,47034.0,47030.0,0.54505505]
[1641179390715,1.44727434,47033.0,47030.0,0.54505505]
[1641179391614,0.09324267,47034.0,47030.0,0.54505505]
[1641179391815,0.001,47031.0,47029.0,0.14033567]
[1641179392014,0.001,47030.0,47029.0,0.14033567]
[1641179392427,0.001,47030.0,47029.0,0.32933567]
[1641179392930,0.09145465,47030.0,47029.0,0.32933567]
[1641179393828,0.09145465,47030.0,47029.0,0.14033567]
[1641179394028,0.2927251,47030.0,47029.0,0.14033567]
[1641179394428,0.4727251,47030.0,47029.0,0.32333567]
[1641179394730,0.06697909,47029.0,47025.0,0.35405505]
[1641179394928,0.009794,47028.0,47025.0,0.35405505]
[1641179395829,0.18,47026.0,47025.0,0.35405505]
[1641179396033,0.20127362,47026.0,47024.0,0.14033567]
[1641179396538,0.39027362,47026.0,47024.0,0.14033567]
[1641179396731,0.21027362,47026.0,47024.0,0.14033567]
[1641179397331,0.09045465,47025.0,47024.0,0.14033567]
[1641179398332,0.27645465,47025.0,47024.0,0.14033567]
[1641179398832,0.27645465,47025.0,47016.0,1.9549]
[1641179398833,0.29773013,47025.0,47016.0,1.9549]
[1641179399031,0.18,47023.0,47014.0,0.35405505]
[1641179399231,0.2133,47021.0,47014.0,0.35405505]
[1641179399432,0.001,47016.0,47014.0,0.35405505]
[1641179399632,0.001,47015.0,47014.0,0.35405505]
[1641179400436,0.187,47015.0,47010.0,0.35405505]
[1641179400636,0.001,47011.0,47010.0,0.35405505]